Workbook

Sheet 2016
A1: 2016年度新能源汽车推广应用补助资金清算审核车辆信息表
A2: 地区 | B2: 序号 | C2: 车辆生产企业 | D2: 车辆型号 | E2: 申报推广数 （辆） | F2: 申请补助标准 （万元） | G2: 申请清算资金 （万元） | H2: 核定推广数 （辆） | I2: 核定补助标准 （万元） | J2: 应清算补助资金 （万元） | K2: 按整车企业取整后补助资金（万元） | L2: 核减原因 | M2: 此前待扣回预拨资金（万元） | N2: 此次扣回预拨资金（万元） | O2: 扣回相应预拨资金后剩余资金（万元）
A3: 总计 | E3: =SUM(E4:E131)/3 -> 13070 | G3: =SUM(G4:G131)/3 -> 78638.5048 | H3: 6168 | J3: 38646.247 | K3: =SUM(K4:K128)/2 -> 38649 | M3: =SUM(M4:M128)/2 -> 331702 | N3: =SUM(N4:N128)/2 -> 21512 | O3: =SUM(O4:O128)/2 -> 17137
A4: 北京市 | B4: 合计 | E4: =SUM(E5:E21)/2 -> 3069 | G4: 15286.218 | H4: 2430 | J4: 12399.806 | K4: =SUM(K5:K19) -> 12400 | M4: =SUM(M5:M19) -> 35632 | N4: =SUM(N5:N19) -> 12148 | O4: =SUM(O5:O19) -> 252
B5: 1 | C5: 北京汽车股份有限公司 | D5: 小计 | E5: =SUM(E6:E16) -> 2438 | G5: 12248.718 | H5: 2418 | J5: 12147.806 | K5: =ROUND(J5,0) -> 12148 | M5: 35632 | N5: =K5 -> 12148 | O5: =K5-N5 -> 0
D6: BJ5022XXYV3R2-BEV | E6: 294 | F6: 6.804 | G6: =E6*F6 -> 2000.376 | H6: 291 | I6: 6.804 | J6: =H6*I6 -> 1979.964 | L6: 核减3辆，原因为：车辆注册登记信息有误
D7: BJ5022XXYV3R5-BEV | E7: 101 | F7: 6.642 | G7: =E7*F7 -> 670.842 | H7: 101 | I7: 6.642 | J7: =H7*I7 -> 670.842
D8: BJ7000B3D5-BEV | E8: 281 | F8: 4.5 | G8: 1264.5 | H8: 278 | I8: 4.5 | J8: 1251 | L8: 核减3辆，原因为：车辆注册登记信息有误
D9: BJ7000B3D6-BEV | E9: 1090 | F9: 4.5 | G9: 4905 | H9: 1080 | I9: 4.5 | J9: 4860 | L9: 核减10辆，原因为：车辆注册登记信息有误
D10: BJ7000B3DA-BEV | E10: 1 | F10: 4.5 | G10: 4.5 | H10: 1 | I10: 4.5 | J10: 4.5
D11: BJ7000C5E1-BEV | E11: 12 | F11: 4.5 | G11: 54 | H11: 12 | I11: 4.5 | J11: 54
D12: BJ7000C5E1-BEV | E12: 384 | F12: 5.5 | G12: 2112 | H12: 380 | I12: 5.5 | J12: 2090 | L12: 核减4辆，原因为：车辆注册登记信息有误
D13: BJ7000C7H3-BEV | E13: 30 | F13: 4.5 | G13: 135 | H13: 30 | I13: 4.5 | J13: 135
D14: BJ7000U3D-BEV | E14: 39 | F14: 4.5 | G14: 175.5 | H14: 39 | I14: 4.5 | J14: 175.5
D15: BJ7001B3D2-BEV | E15: 47 | F15: 4.5 | G15: 211.5 | H15: 47 | I15: 4.5 | J15: 211.5
D16: BJ7002B3D2-BEV | E16: 159 | F16: 4.5 | G16: 715.5 | H16: 159 | I16: 4.5 | J16: 715.5
B17: 2 | C17: 北京汽车制造厂有限公司 | D17: 小计 | E17: =SUM(E18) -> 12 | G17: 252 | H17: 12 | J17: 252 | K17: =ROUND(J17,0) -> 252 | M17: 0 | N17: 0 | O17: =K17-N17 -> 252
D18: BJ6610BG41BEV | E18: 12 | F18: 21 | G18: =E18*F18 -> 252 | H18: 12 | I18: 21 | J18: =H18*I18 -> 252
B19: 3 | C19: 北京新能源汽车股份有限公司 | D19: 小计 | E19: =SUM(E20:E21) -> 619 | G19: 2785.5 | H19: 0 | J19: 0 | K19: =ROUND(J19,0) -> 0 | M19: 0 | N19: 0 | O19: =K19-N19 -> 0
D20: BJ7001BPH1-BEV | E20: 605 | F20: 4.5 | G20: =E20*F20 -> 2722.5 | H20: 0 | I20: 0 | J20: =H20*I20 -> 0 | L20: 核减605辆，原因为：现场核查不通过
D21: BJ7001BPH2-BEV | E21: 14 | F21: 4.5 | G21: =E21*F21 -> 63 | H21: 0 | I21: 0 | J21: =H21*I21 -> 0 | L21: 核减14辆，原因为：现场核查不通过
A22: 河北省 | B22: 合计 | E22: =SUM(E23:E24)/2 -> 32 | G22: 144 | H22: 30 | J22: 135 | K22: =SUM(K23) -> 135 | M22: =SUM(M23) -> 0 | N22: =SUM(N23) -> 0 | O22: =SUM(O23) -> 135
B23: 1 | C23: 领途汽车有限公司 | D23: 小计 | E23: =SUM(E24) -> 32 | G23: 144 | H23: 30 | J23: 135 | K23: =ROUND(J23,0) -> 135 | M23: 0 | N23: 0 | O23: =K23-N23 -> 135
D24: YGM6350BEV | E24: 32 | F24: 4.5 | G24: =E24*F24 -> 144 | H24: 30 | I24: 4.5 | J24: =H24*I24 -> 135 | L24: 核减2辆，原因为：1辆车辆注册登记信息有误；1辆现场核查不通过
A25: 山西省 | B25: 合计 | E25: =SUM(E26:E32)/2 -> 92 | G25: 979.668 | H25: 92 | J25: 979.668 | K25: =SUM(K26:K29) -> 980 | M25: =SUM(M26:M29) -> 2499 | N25: =SUM(N26:N29) -> 161 | O25: =SUM(O26:O29) -> 819
B26: 1 | C26: 大运汽车股份有限公司 | D26: 小计 | E26: =SUM(E27:E28) -> 70 | G26: 819 | H26: 70 | J26: 819 | K26: =ROUND(J26,0) -> 819 | M26: 0 | N26: 0 | O26: =K26-N26 -> 819
D27: DYX5040XXYBEV1CAH0 | E27: 53 | F27: 11.7 | G27: =E27*F27 -> 620.1 | H27: 53 | I27: 11.7 | J27: =H27*I27 -> 620.1
D28: DYX5040XXYBEV1ZAH0 | E28: 17 | F28: 11.7 | G28: =E28*F28 -> 198.9 | H28: 17 | I28: 11.7 | J28: =H28*I28 -> 198.9
B29: 2 | C29: 山西成功汽车制造有限公司 | D29: 小计 | E29: =SUM(E30:E32) -> 22 | G29: 160.668 | H29: 22 | J29: 160.668 | K29: =ROUND(J29,0) -> 161 | M29: 2499 | N29: =K29 -> 161 | O29: =K29-N29 -> 0
D30: SCH5022XXY-BEV1 | E30: 1 | F30: 6.822 | G30: =E30*F30 -> 6.822 | H30: 1 | I30: 6.822 | J30: =H30*I30 -> 6.822
D31: SCH5022XXY-BEV2 | E31: 14 | F31: 7.578 | G31: =E31*F31 -> 106.092 | H31: 14 | I31: 7.578 | J31: =H31*I31 -> 106.092
D32: SCH5022XXY-BEV5 | E32: 7 | F32: 6.822 | G32: =E32*F32 -> 47.754 | H32: 7 | I32: 6.822 | J32: =H32*I32 -> 47.754
A33: 辽宁省 | B33: 合计 | E33: =SUM(E34:E35)/2 -> 1 | G33: 50 | H33: 1 | J33: 50 | K33: =SUM(K34) -> 50 | M33: =SUM(M34) -> 2799 | N33: =SUM(N34) -> 50 | O33: =SUM(O34) -> 0
B34: 1 | C34: 丹东黄海汽车有限责任公司 | D34: 小计 | E34: =SUM(E35) -> 1 | G34: 50 | H34: 1 | J34: 50 | K34: =ROUND(J34,0) -> 50 | M34: 2799 | N34: =K34 -> 50 | O34: =K34-N34 -> 0
D35: DD6110KEV2 | E35: 1 | F35: 50 | G35: =E35*F35 -> 50 | H35: 1 | I35: 50 | J35: =H35*I35 -> 50
A36: 上海市 | B36: 合计 | E36: =SUM(E37:E43)/2 -> 48 | G36: 665.6 | H36: 47 | J36: 661.1 | K36: =SUM(K37:K39) -> 662 | M36: =SUM(M37:M39) -> 28175 | N36: =SUM(N37:N39) -> 662 | O36: =SUM(O37:O39) -> 0
B37: 1 | C37: 上海汽车集团股份有限公司 | D37: 小计 | E37: =SUM(E38) -> 4 | G37: 18 | H37: 3 | J37: 13.5 | K37: =ROUND(J37,0) -> 14 | M37: 20789 | N37: =K37 -> 14 | O37: =K37-N37 -> 0
D38: CSA7001BEV | E38: 4 | F38: 4.5 | G38: =E38*F38 -> 18 | H38: 3 | I38: 4.5 | J38: =H38*I38 -> 13.5 | L38: 核减1辆，原因为：车辆注册登记信息有误
B39: 2 | C39: 上海汽车商用车有限公司 | D39: 小计 | E39: =SUM(E40:E43) -> 44 | G39: 647.6 | H39: 44 | J39: 647.6 | K39: =ROUND(J39,0) -> 648 | M39: 7386 | N39: =K39 -> 648 | O39: =K39-N39 -> 0
D40: SH5040XXYA7BEV | E40: 2 | F40: 10.8 | G40: =E40*F40 -> 21.6 | H40: 2 | I40: 10.8 | J40: =H40*I40 -> 21.6
D41: SH5041XXYA7BEV | E41: 28 | F41: 13.5 | G41: =E41*F41 -> 378 | H41: 28 | I41: 13.5 | J41: =H41*I41 -> 378
D42: SH6521C1BEV | E42: 4 | F42: 4.5 | G42: =E42*F42 -> 18 | H42: 4 | I42: 4.5 | J42: =H42*I42 -> 18
D43: SH6601A4BEV | E43: 10 | F43: 23 | G43: =E43*F43 -> 230 | H43: 10 | I43: 23 | J43: =H43*I43 -> 230
A44: 江苏省 | B44: 合计 | E44: =SUM(E45:E68)/2 -> 267 | G44: 6765.0228 | H44: 209 | J44: 5401.657 | K44: =SUM(K45:K67) -> 5402 | M44: =SUM(M45:M67) -> 23885 | N44: =SUM(N45:N67) -> 4057 | O44: =SUM(O45:O67) -> 1345
B45: 1 | C45: 东风悦达起亚汽车有限公司 | D45: 小计 | E45: =SUM(E46) -> 2 | G45: 11 | H45: 2 | J45: 11 | K45: =ROUND(J45,0) -> 11 | M45: 9071 | N45: =K45 -> 11 | O45: =K45-N45 -> 0
D46: YQZ7002BEV | E46: 2 | F46: 5.5 | G46: =E46*F46 -> 11 | H46: 2 | I46: 5.5 | J46: =H46*I46 -> 11
B47: 2 | C47: 江苏常隆客车有限公司 | D47: 小计 | E47: =SUM(E48) -> 2 | G47: 100 | H47: 0 | J47: 0 | K47: =ROUND(J47,0) -> 0 | M47: 0 | N47: 0 | O47: =K47-N47 -> 0
D48: YS6127BEV | E48: 2 | F48: 50 | G48: =E48*F48 -> 100 | H48: 0 | I48: 0 | J48: =H48*I48 -> 0 | L48: 核减2辆，原因为：车辆注册登记信息有误
B49: 3 | C49: 江苏陆地方舟新能源电动汽车有限公司 | D49: 小计 | E49: =SUM(E50:E54) -> 54 | G49: 1198.3658 | H49: 0 | J49: 0 | K49: =ROUND(J49,0) -> 0 | M49: 0 | N49: 0 | O49: =K49-N49 -> 0
D50: RQ5022XXYEVH9 | E50: 31 | F50: 8.0118 | G50: =E50*F50 -> 248.3658 | H50: 0 | I50: 0 | J50: =H50*I50 -> 0 | L50: 核减31辆，原因为：1辆车辆注册登记信息有误；30辆现场核查不通过
D51: RQ6110YEVH4 | E51: 3 | F51: 50 | G51: =E51*F51 -> 150 | H51: 0 | I51: 0 | J51: =H51*I51 -> 0 | L51: 核减3辆，原因为：现场核查不通过
D52: RQ6830GEVH2 | E52: 15 | F52: 40 | G52: =E52*F52 -> 600 | H52: 0 | I52: 0 | J52: =H52*I52 -> 0 | L52: 核减15辆，原因为：3辆车辆注册登记信息有误；12辆现场核查不通过
D53: RQ6830YEVH11 | E53: 3 | F53: 40 | G53: =E53*F53 -> 120 | H53: 0 | I53: 0 | J53: =H53*I53 -> 0 | L53: 核减3辆，原因为：现场核查不通过
D54: RQ6830YEVH8 | E54: 2 | F54: 40 | G54: =E54*F54 -> 80 | H54: 0 | I54: 0 | J54: =H54*I54 -> 0 | L54: 核减2辆，原因为：现场核查不通过
B55: 4 | C55: 金龙联合汽车工业（苏州）有限公司 | D55: 小计 | E55: =SUM(E56) -> 1 | G55: 25 | H55: 1 | J55: 25 | K55: =ROUND(J55,0) -> 25 | M55: 0 | N55: 0 | O55: =K55-N55 -> 25
D56: KLQ6601BEV1X2 | E56: 1 | F56: 25 | G56: =E56*F56 -> 25 | H56: 1 | I56: 25 | J56: =H56*I56 -> 25
B57: 5 | C57: 南京金龙客车制造有限公司 | D57: 小计 | E57: =SUM(E58:E66) -> 175 | G57: 4110.657 | H57: 173 | J57: 4045.657 | K57: =ROUND(J57,0) -> 4046 | M57: 14814 | N57: =K57 -> 4046 | O57: =K57-N57 -> 0
D58: NJL5022XXYBEV5 | E58: 2 | F58: 6.822 | G58: =E58*F58 -> 13.644 | H58: 2 | I58: 6.822 | J58: =H58*I58 -> 13.644
D59: NJL5040XXYBEV | E59: 23 | F59: 13.131 | G59: 302.013 | H59: 23 | I59: 13.131 | J59: 302.013
D60: NJL6600BEV32 | E60: 44 | F60: 25 | G60: 1100 | H60: 44 | I60: 25 | J60: 1100
D61: NJL6600BEV41 | E61: 73 | F61: 25 | G61: 1825 | H61: 72 | I61: 25 | J61: 1800 | L61: 核减1辆，原因为：现场核查不通过
D62: NJL6600BEV68 | E62: 8 | F62: 25 | G62: 200 | H62: 8 | I62: 25 | J62: 200
D63: NJL6601BEV27 | E63: 22 | F63: 25 | G63: 550 | H63: 22 | I63: 25 | J63: 550
D64: NJL6806BEV1 | E64: 1 | F64: 40 | G64: 40 | H64: 1 | I64: 40 | J64: 40
D65: NJL6810BEV2 | E65: 1 | F65: 40 | G65: 40 | H65: 1 | I65: 40 | J65: 40
D66: NJL6859BEV | E66: 1 | F66: 40 | G66: 40 | H66: 0 | I66: 0 | J66: 0 | L66: 核减1辆，原因为：未按有关要求上传车辆运行数据
B67: 6 | C67: 苏州益茂电动客车有限公司 | D67: 小计 | E67: =SUM(E68) -> 33 | G67: 1320 | H67: 33 | J67: 1320 | K67: =ROUND(J67,0) -> 1320 | M67: 0 | N67: 0 | O67: =K67-N67 -> 1320
D68: ZQK6810EV | E68: 33 | F68: 40 | G68: =E68*F68 -> 1320 | H68: 33 | I68: 40 | J68: =H68*I68 -> 1320
A69: 浙江省 | B69: 合计 | E69: =SUM(E70:E75)/2 -> 8658 | G69: 38961 | H69: 2696 | J69: 12132 | K69: =SUM(K70) -> 12132 | M69: =SUM(M70) -> 0 | N69: =SUM(N70) -> 0 | O69: =SUM(O70) -> 12132
B70: 1 | C70: 湖南江南汽车制造有限公司永康众泰分公司 | D70: 小计 | E70: =SUM(E71:E75) -> 8658 | G70: 38961 | H70: 2696 | J70: 12132 | K70: =ROUND(J70,0) -> 12132 | M70: 0 | N70: 0 | O70: =K70-N70 -> 12132
D71: JNJ7000EVA6 | E71: 370 | F71: 4.5 | G71: =E71*F71 -> 1665 | H71: 4 | I71: 4.5 | J71: =H71*I71 -> 18 | L71: 核减366辆，原因为：不符合行驶里程数要求
D72: JNJ7000EVK | E72: 1059 | F72: 4.5 | G72: =E72*F72 -> 4765.5 | H72: 373 | I72: 4.5 | J72: =H72*I72 -> 1678.5 | L72: 核减686辆，原因为：683辆不符合行驶里程数要求；3辆车辆注册登记信息有误
D73: JNJ7000EVK1 | E73: 5331 | F73: 4.5 | G73: =E73*F73 -> 23989.5 | H73: 1450 | I73: 4.5 | J73: =H73*I73 -> 6525 | L73: 核减3881辆，原因为：3857辆不符合行驶里程数要求；24辆车辆注册登记信息有误
D74: JNJ7000EVX7 | E74: 60 | F74: 4.5 | G74: =E74*F74 -> 270 | H74: 28 | I74: 4.5 | J74: =H74*I74 -> 126 | L74: 核减32辆，原因为：不符合行驶里程数要求
D75: JNJ7000EVX9 | E75: 1838 | F75: 4.5 | G75: =E75*F75 -> 8271 | H75: 841 | I75: 4.5 | J75: =H75*I75 -> 3784.5 | L75: 核减997辆，原因为：990辆不符合行驶里程数要求；7辆车辆注册登记信息有误
A76: 宁波市 | B76: 合计 | E76: =SUM(E77:E78)/2 -> 2 | G76: 11 | H76: 0 | J76: 0 | K76: =SUM(K77) -> 0 | M76: =SUM(M77) -> 28209 | N76: =SUM(N77) -> 0 | O76: =SUM(O77) -> 0
B77: 1 | C77: 浙江吉利汽车有限公司 | D77: 小计 | E77: =SUM(E78) -> 2 | G77: 11 | H77: 0 | J77: 0 | K77: =ROUND(J77,0) -> 0 | M77: 28209 | N77: =K77 -> 0 | O77: =K77-N77 -> 0
D78: MR7002BEV03 | E78: 2 | F78: 5.5 | G78: =E78*F78 -> 11 | H78: 0 | I78: 0 | J78: =H78*I78 -> 0 | L78: 核减2辆，原因为：1辆未按有关要求上传车辆运行数据；1辆现场核查不通过
A79: 安徽省 | B79: 合计 | E79: =SUM(E80:E86)/2 -> 286 | G79: 7658 | H79: 134 | J79: 604 | K79: =SUM(K80:K82) -> 604 | M79: =SUM(M80:M82) -> 0 | N79: =SUM(N80:N82) -> 0 | O79: =SUM(O80:O82) -> 604
B80: 1 | C80: 安徽安凯汽车股份有限公司 | D80: 小计 | E80: =SUM(E81) -> 140 | G80: 7000 | H80: 0 | J80: 0 | K80: =ROUND(J80,0) -> 0 | M80: 0 | N80: 0 | O80: =K80-N80 -> 0
D81: HFF6111K10EV | E81: 140 | F81: 50 | G81: =E81*F81 -> 7000 | H81: 0 | I81: 0 | J81: =H81*I81 -> 0 | L81: 核减140辆，原因为：需进一步核实后予以清算
B82: 2 | C82: 安徽江淮汽车股份有限公司 | D82: 小计 | E82: =SUM(E83:E86) -> 146 | G82: 658 | H82: 134 | J82: 604 | K82: =ROUND(J82,0) -> 604 | M82: 0 | N82: 0 | O82: =K82-N82 -> 604
D83: HFC7000AEV | E83: 79 | F83: 4.5 | G83: =E83*F83 -> 355.5 | H83: 72 | I83: 4.5 | J83: =H83*I83 -> 324 | L83: 核减7辆，原因为：未按有关要求上传车辆运行数据
D84: HFC7001A1EV | E84: 46 | F84: 4.5 | G84: =E84*F84 -> 207 | H84: 42 | I84: 4.5 | J84: =H84*I84 -> 189 | L84: 核减4辆，原因为：未按有关要求上传车辆运行数据
D85: HFC7001AEV | E85: 20 | F85: 4.5 | G85: =E85*F85 -> 90 | H85: 19 | I85: 4.5 | J85: =H85*I85 -> 85.5 | L85: 核减1辆，原因为：车辆注册登记信息有误
D86: HFC7001EAEV | E86: 1 | F86: 5.5 | G86: =E86*F86 -> 5.5 | H86: 1 | I86: 5.5 | J86: =H86*I86 -> 5.5
A87: 山东省 | B87: 合计 | E87: =SUM(E88:E93)/2 -> 65 | G87: 2684 | H87: 23 | J87: 1130 | K87: =SUM(K88:K91) -> 1130 | M87: =SUM(M88:M91) -> 0 | N87: =SUM(N88:N91) -> 0 | O87: =SUM(O88:O91) -> 1130
B88: 1 | C88: 山东沂星电动汽车有限公司 | D88: 小计 | E88: =SUM(E89:E90) -> 23 | G88: 1130 | H88: 23 | J88: 1130 | K88: =ROUND(J88,0) -> 1130 | M88: 0 | N88: 0 | O88: =K88-N88 -> 1130
D89: SDL6100EVG3 | E89: 21 | F89: 50 | G89: =E89*F89 -> 1050 | H89: 21 | I89: 50 | J89: =H89*I89 -> 1050
D90: SDL6800EV | E90: 2 | F90: 40 | G90: =E90*F90 -> 80 | H90: 2 | I90: 40 | J90: =H90*I90 -> 80
B91: 2 | C91: 中国重汽集团济南豪沃客车有限公司 | D91: 小计 | E91: =SUM(E92:E93) -> 42 | G91: 1554 | H91: 0 | J91: 0 | K91: =ROUND(J91,0) -> 0 | M91: 0 | N91: 0 | O91: =K91-N91 -> 0
D92: JK6106GBEV3 | E92: 17 | F92: 42 | G92: =E92*F92 -> 714 | H92: 0 | I92: 0 | J92: =H92*I92 -> 0 | L92: 核减17辆，原因为：不符合行驶里程数要求
D93: JK6806GBEV | E93: 25 | F93: 33.6 | G93: =E93*F93 -> 840 | H93: 0 | I93: 0 | J93: =H93*I93 -> 0 | L93: 核减25辆，原因为：不符合行驶里程数要求
A94: 湖北省 | B94: 合计 | E94: =SUM(E95:E96)/2 -> 50 | G94: 225 | H94: 50 | J94: 225 | K94: =SUM(K95) -> 225 | M94: =SUM(M95) -> 0 | N94: =SUM(N95) -> 0 | O94: =SUM(O95) -> 225
B95: 1 | C95: 东风汽车有限公司 | D95: 小计 | E95: =SUM(E96) -> 50 | G95: 225 | H95: 50 | J95: 225 | K95: =ROUND(J95,0) -> 225 | M95: 0 | N95: 0 | O95: =K95-N95 -> 225
D96: DFL7000B2BEV | E96: 50 | F96: 4.5 | G96: =E96*F96 -> 225 | H96: 50 | I96: 4.5 | J96: =H96*I96 -> 225
A97: 湖南省 | B97: 合计 | E97: =SUM(E98:E99)/2 -> 12 | G97: 103.68 | H97: 11 | J97: 95.04 | K97: =SUM(K98) -> 95 | M97: =SUM(M98) -> 0 | N97: =SUM(N98) -> 0 | O97: =SUM(O98) -> 95
B98: 1 | C98: 比亚迪汽车工业有限公司长沙分公司 | D98: 小计 | E98: =SUM(E99) -> 12 | G98: 103.68 | H98: 11 | J98: 95.04 | K98: =ROUND(J98,0) -> 95 | M98: 0 | N98: 0 | O98: =K98-N98 -> 95
D99: BYD5030XXYBEV1 | E99: 12 | F99: 8.64 | G99: =E99*F99 -> 103.68 | H99: 11 | I99: 8.64 | J99: =H99*I99 -> 95.04 | L99: 核减1辆，原因为：现场核查不通过
A100: 深圳市 | B100: 合计 | E100: =SUM(E101:E106)/2 -> 116 | G100: 613 | H100: 116 | J100: 613 | K100: =SUM(K101) -> 613 | M100: =SUM(M101) -> 106365 | N100: =SUM(N101) -> 613 | O100: =SUM(O101) -> 0
B101: 1 | C101: 比亚迪汽车工业有限公司 | D101: 小计 | E101: =SUM(E102:E106) -> 116 | G101: 613 | H101: 116 | J101: 613 | K101: =ROUND(J101,0) -> 613 | M101: 106365 | N101: =K101 -> 613 | O101: =K101-N101 -> 0
D102: BYD6480STHEV | E102: 9 | F102: 3 | G102: =E102*F102 -> 27 | H102: 9 | I102: 3 | J102: =H102*I102 -> 27
D103: BYD6480STHEV2 | E103: 1 | F103: 3 | G103: =E103*F103 -> 3 | H103: 1 | I103: 3 | J103: =H103*I103 -> 3
D104: BYD7006BEVH | E104: 78 | F104: 5.5 | G104: =E104*F104 -> 429 | H104: 78 | I104: 5.5 | J104: =H104*I104 -> 429
D105: QCJ7006BEVF | E105: 17 | F105: 5.5 | G105: =E105*F105 -> 93.5 | H105: 17 | I105: 5.5 | J105: =H105*I105 -> 93.5
D106: QCJ7007BEV | E106: 11 | F106: 5.5 | G106: =E106*F106 -> 60.5 | H106: 11 | I106: 5.5 | J106: =H106*I106 -> 60.5
A107: 海南省 | B107: 合计 | E107: =SUM(E108:E109)/2 -> 22 | G107: 99 | H107: 22 | J107: 99 | K107: =SUM(K108) -> 99 | M107: =SUM(M108) -> 0 | N107: =SUM(N108) -> 0 | O107: =SUM(O108) -> 99
B108: 1 | C108: 一汽海马汽车有限公司 | D108: 小计 | E108: =SUM(E109) -> 22 | G108: 99 | H108: 22 | J108: 99 | K108: =ROUND(J108,0) -> 99 | M108: 0 | N108: 0 | O108: =K108-N108 -> 99
D109: HMC7001BM0BEV | E109: 22 | F109: 4.5 | G109: =E109*F109 -> 99 | H109: 22 | I109: 4.5 | J109: =H109*I109 -> 99
A110: 重庆市 | B110: 合计 | E110: =SUM(E111:E112)/2 -> 160 | G110: 2401.92 | H110: 160 | J110: 2401.92 | K110: =SUM(K111) -> 2402 | M110: =SUM(M111) -> 29843 | N110: =SUM(N111) -> 2402 | O110: =SUM(O111) -> 0
B111: 1 | C111: 重庆长安汽车股份有限公司 | D111: 小计 | E111: =SUM(E112) -> 160 | G111: 2401.92 | H111: 160 | J111: 2401.92 | K111: =ROUND(J111,0) -> 2402 | M111: 29843 | N111: =K111 -> 2402 | O111: =K111-N111 -> 0
D112: SC5041XXYFRD53BEV | E112: 160 | F112: 15.012 | G112: =E112*F112 -> 2401.92 | H112: 160 | I112: 15.012 | J112: =H112*I112 -> 2401.92
A113: 四川省 | B113: 合计 | E113: =SUM(E114:E123)/2 -> 57 | G113: 1186.006 | H113: 50 | J113: 1154.506 | K113: =SUM(K114:K118) -> 1155 | M113: =SUM(M114:M118) -> 13677 | N113: =SUM(N114:N118) -> 1155 | O113: =SUM(O114:O118) -> 0
B114: 1 | C114: 成都客车股份有限公司 | D114: 小计 | E114: =SUM(E115) -> 2 | G114: 50 | H114: 2 | J114: 50 | K114: =ROUND(J114,0) -> 50 | M114: 5091 | N114: =K114 -> 50 | O114: =K114-N114 -> 0
D115: CDK6703BEV2 | E115: 2 | F115: 25 | G115: =E115*F115 -> 50 | H115: 2 | I115: 25 | J115: =H115*I115 -> 50
B116: 2 | C116: 四川野马汽车股份有限公司 | D116: 小计 | E116: =SUM(E117) -> 7 | G116: 31.5 | H116: 0 | J116: 0 | K116: =ROUND(J116,0) -> 0 | M116: 0 | N116: 0 | O116: =K116-N116 -> 0
D117: SQJ6460BEV | E117: 7 | F117: 4.5 | G117: =E117*F117 -> 31.5 | H117: 0 | I117: 0 | J117: =H117*I117 -> 0 | L117: 核减7辆，原因为：现场核查不通过
B118: 3 | C118: 中植一客成都汽车有限公司 | D118: 小计 | E118: =SUM(E119:E123) -> 48 | G118: 1104.506 | H118: 48 | J118: 1104.506 | K118: =ROUND(J118,0) -> 1105 | M118: 8586 | N118: =K118 -> 1105 | O118: =K118-N118 -> 0
D119: CDL5020XXYBEV3 | E119: 12 | F119: 7.488 | G119: =E119*F119 -> 89.856 | H119: 12 | I119: 7.488 | J119: =H119*I119 -> 89.856
D120: CDL5021XXYBEV | E120: 10 | F120: 7.965 | G120: =E120*F120 -> 79.65 | H120: 10 | I120: 7.965 | J120: =H120*I120 -> 79.65
D121: CDL6606LRBEV | E121: 7 | F121: 25 | G121: =E121*F121 -> 175 | H121: 7 | I121: 25 | J121: =H121*I121 -> 175
D122: CDL6810LRBEV | E122: 6 | F122: 40 | G122: =E122*F122 -> 240 | H122: 6 | I122: 40 | J122: =H122*I122 -> 240
D123: CDL6810LRBEV1 | E123: 13 | F123: 40 | G123: =E123*F123 -> 520 | H123: 13 | I123: 40 | J123: =H123*I123 -> 520
A124: 贵州省 | B124: 合计 | E124: =SUM(E125:E126)/2 -> 81 | G124: 541.89 | H124: 45 | J124: 301.05 | K124: =SUM(K125) -> 301 | M124: =SUM(M125) -> 0 | N124: =SUM(N125) -> 0 | O124: =SUM(O125) -> 301
B125: 1 | C125: 贵州航天成功汽车制造有限公司 | D125: 小计 | E125: =SUM(E126) -> 81 | G125: 541.89 | H125: 45 | J125: 301.05 | K125: =ROUND(J125,0) -> 301 | M125: 0 | N125: 0 | O125: =K125-N125 -> 301
D126: GHT5021XXYD-BEV | E126: 81 | F126: 6.69 | G126: =E126*F126 -> 541.89 | H126: 45 | I126: 6.69 | J126: =H126*I126 -> 301.05 | L126: 核减36辆，原因为：1辆不符合行驶里程数要求；2辆重复申报；33辆车辆注册登记信息有误
A127: 陕西省 | B127: 合计 | E127: =SUM(E128:E131)/2 -> 52 | G127: 263.5 | H127: 52 | J127: 263.5 | K127: =SUM(K128) -> 264 | M127: =SUM(M128) -> 60618 | N127: =SUM(N128) -> 264 | O127: =SUM(O128) -> 0
B128: 1 | C128: 比亚迪汽车有限公司 | D128: 小计 | E128: =SUM(E129:E131) -> 52 | G128: 263.5 | H128: 52 | J128: 263.5 | K128: =ROUND(J128,0) -> 264 | M128: 60618 | N128: =K128 -> 264 | O128: =K128-N128 -> 0
D129: BYD7005BEV | E129: 34 | F129: 5.5 | G129: =E129*F129 -> 187 | H129: 34 | I129: 5.5 | J129: =H129*I129 -> 187
D130: BYD7008BEV1 | E130: 9 | F130: 5.5 | G130: =E130*F130 -> 49.5 | H130: 9 | I130: 5.5 | J130: =H130*I130 -> 49.5
D131: BYD7150WTHEV3 | E131: 9 | F131: 3 | G131: =E131*F131 -> 27 | H131: 9 | I131: 3 | J131: =H131*I131 -> 27

Sheet Sheet1
A1: 申报推广数 （辆） | B1: 申请补助标准 （万元） | C1: 申请清算资金 （万元） | D1: 核定推广数 （辆） | E1: 核定补助标准 （万元） | F1: 应清算补助资金 （万元） | G1: 按整车企业取整后补助资金（万元） | H1: 核减原因 | I1: 此前待扣回预拨资金（万元） | J1: 此次扣回预拨资金（万元） | K1: 扣回相应预拨资金后剩余资金（万元）
A2: =SUM(A3:A130)/3 -> 0 | C2: 0 | D2: 0 | F2: 0 | G2: =SUM(G3:G127)/2 -> 0 | I2: 0 | J2: 0 | K2: 0

Sheet Sheet2
A2: 2017-2021年度新能源汽车推广应用补助资金清算信息汇总
A3: 年度 | B3: 申报推广数（辆） | C3: 申请清算资金（万元） | D3: 核定推广数（辆） | E3: 应清算补助资金（万元） | F3: 按整车企业取整后补助资金（万元） | G3: 扣回相应预拨资金后剩余资金（万元）
A4: 2016年度 | B4: 3,070 | C4: 78,638.50 | D4: 6168 | E4: 38,646.25 | F4: 38,649 | G4: 17,137
A5: 2017年度 | B5: 60,841 | C5: 368,195.45 | D5: 34,718 | E5: 247,652.40 | F5: 247,652 | G5: 126,330
A6: 2018年度 | B6: 58,961 | C6: 282,637.61 | D6: 37,658 | E6: 206,039.30 | F6: 206,045 | G6: 138,328
A7: 2019年度 | B7: 63340 | C7: 192,307.08 | D7: 57,471 | E7: 178,011.99 | F7: 178,014 | G7: 121,505
A8: 2020年度 | B8: 42,165 | C8: 100,783.25 | D8: 38,099 | E8: 89,658.79 | F8: 89,660 | G8: 63,039
A9: 2021年度 | B9: 180,326 | C9: 279,271.94 | D9: 168,080 | E9: 260,180.84 | F9: 260,184 | G9: 128,980
A10: 总计 | B10: =SUM(B4:B9) -> 408703 | C10: =SUM(C4:C9) -> 1301833.817 | D10: =SUM(D4:D9) -> 342194 | E10: =SUM(E4:E9) -> 1020189.556 | F10: =SUM(F4:F9) -> 1020204 | G10: =SUM(G4:G9) -> 595319
A11: 制表：电池网数据部
